fUSD/lending_fUSD_20260320
["ID","MTS","AMOUNT","RATE_DAILY","PERIOD"]
[408650184,1774047576478,-500.0,0.00047055,35]
[408650185,1774047576501,-250.0,0.00047055,35]
[408650186,1774047576525,-500.0,0.00047055,55]
[408650187,1774047576547,-250.0,0.00047055,50]
[408650188,1774047576570,-500.0,0.00047055,37]
[408650189,1774047576593,-250.0,0.00047055,37]
[408650190,1774047576616,-250.0,0.00047055,55]
[408650191,1774047576641,-500.0,0.00047055,40]
[408650192,1774047576664,-250.0,0.00047055,40]
[408650193,1774047576691,-250.0,0.00047055,30]
[408650194,1774047576715,-250.0,0.00047055,45]
[408650195,1774047576739,-500.0,0.00047055,45]
[408650196,1774047576773,-250.0,0.00047055,35]
[408650197,1774047576805,-250.0,0.00047055,50]
[408650198,1774047576830,-500.0,0.00047055,50]
[408650199,1774047576856,-250.0,0.00047055,37]
[408650200,1774047576884,-250.0,0.00047055,55]
[408650201,1774047576910,-500.0,0.00047055,55]
[408650202,1774047576940,-250.0,0.00047055,40]
[408650203,1774047576968,-250.0,0.00047055,45]
[408650204,1774047576993,-227.0,0.00047055,120]
[408650205,1774047577018,-250.0,0.00047055,50]
[408650206,1774047577047,-296.876923,0.00047055,120]
[408650207,1774047577071,-250.0,0.00047055,30]
[408650208,1774047577096,-250.0,0.00047055,55]
[408650209,1774047577126,-250.0,0.00047055,35]
[408650210,1774047577150,-250.0,0.00047055,37]
[408650211,1774047577179,-250.0,0.00047055,40]
[408650212,1774047577204,-250.0,0.00047055,45]
[408650213,1774047577232,-250.0,0.00047055,50]
[408650214,1774047577258,-250.0,0.00047055,55]
[408650215,1774047577286,-390.08,0.00047055,30]
[408650216,1774047577313,-500.0,0.00047055,30]
[408650217,1774047577338,-250.0,0.00047055,30]
[408650218,1774047577368,-500.0,0.00047055,30]
[408650219,1774047577395,-250.0,0.00047055,35]
[408650220,1774047577421,-250.0,0.00047055,37]
[408650221,1774047577449,-250.0,0.00047055,40]
[408650222,1774047577474,-151.0,0.00047055,30]
[408650223,1774047577499,-250.0,0.00047055,45]
[408650224,1774047577524,-151.0,0.00047055,35]
[408650225,1774047577548,-250.0,0.00047055,45]
[408650226,1774047577581,-151.0,0.00047055,37]
[408650227,1774047577605,-151.0,0.00047055,40]
[408650228,1774047577629,-151.0,0.00047055,45]
[408650229,1774047577654,-151.0,0.00047055,50]
[408650230,1774047577678,-500.0,0.00047055,30]
[408650231,1774047577705,-500.0,0.00047055,30]
[408650232,1774047577730,-151.0,0.00047055,55]
[408650233,1774047577756,-500.0,0.00047055,35]
[408650234,1774047577783,-500.0,0.00047055,35]
[408650235,1774047577807,-151.0,0.00047055,59]
[408650236,1774047578012,-500.0,0.00047055,37]
[408650237,1774047578037,-151.0,0.00047055,60]
[408650238,1774047578061,-500.0,0.00047055,40]
[408650239,1774047578085,-151.0,0.00047055,61]
[408650240,1774047578109,-500.0,0.00047055,45]
[408650241,1774047578136,-151.0,0.00047055,30]
[408650242,1774047578161,-151.0,0.00047055,62]
[408650243,1774047578185,-500.0,0.00047055,50]
[408650244,1774047578209,-151.0,0.00047055,30]
[408650245,1774047578233,-151.0,0.00047055,30]
[408650246,1774047578256,-151.0,0.00047055,63]
[408650247,1774047578280,-500.0,0.00047055,55]
[408650248,1774047578304,-151.0,0.00047055,35]
[408650249,1774047578328,-151.0,0.00047055,64]
[408650250,1774047578356,-151.0,0.00047055,37]
[408650251,1774047578545,151.0,0.00047055,65]
[408650252,1774047578573,379.01689889,0.00047055,30]
[408650253,1774047578602,2864.55504272,0.00047055,30]
[408650254,1774047578650,1367.0,0.00047055,30]
[408650255,1774047578683,151.0,0.00047055,40]
[408650256,1774047578740,400.0,0.00047055,90]
[408650257,1774047578776,151.0,0.00047055,65]
[408650258,1774047578831,151.0,0.00047055,45]
[408650259,1774047578934,151.0,0.00047055,50]
[408650260,1774047579015,151.0,0.00047055,55]
[408650261,1774047579490,400.0,0.00047055,90]
[408650262,1774047579560,163.94361037,0.00047055,30]
[408650263,1774047579759,700.0,0.00047055,120]
[408650264,1774047580586,151.0,0.00047055,30]
[408650265,1774047580614,390.08,0.00047055,30]
[408650266,1774047580856,761.0,0.00047055,30]
[408650267,1774047581180,151.0,0.00047055,35]
[408650268,1774047581777,151.0,0.00047055,37]
[408650269,1774047581826,183.98115192,0.00047055,90]
[408650270,1774047582379,151.0,0.00047055,40]
[408650271,1774047583003,151.0,0.00047055,45]
[408650272,1774047583595,151.0,0.00047055,45]
[408650273,1774047585147,298.27659266,0.00047055,30]
[408650274,1774047585392,169.13395939,0.00047055,30]
[408650275,1774047601806,390.08,0.00047055,30]
[408650277,1774047610366,390.08,0.00047066,30]
[408650278,1774047613901,3877.0,0.00047066,30]
[408650279,1774047621043,390.08,0.00047066,30]
[408650280,1774047635968,390.08,0.00047066,30]
[408650282,1774047651997,390.08,0.00047066,30]
[408650283,1774047665596,250.0,0.00047066,120]
[408650284,1774047665742,390.08,0.00047066,30]
[408650285,1774047666396,250.0,0.00047066,120]
[408650286,1774047666817,250.0,0.00047066,120]
[408650287,1774047667425,250.0,0.00047066,120]
[408650288,1774047668016,250.0,0.00047066,120]
[408650289,1774047668604,250.0,0.00047066,120]
[408650290,1774047669202,250.0,0.00047066,120]
[408650291,1774047669826,250.0,0.00047066,120]
[408650292,1774047670226,500.0,0.00047066,120]
[408650293,1774047670262,358.50471421,0.00047066,120]
[408650294,1774047670826,500.0,0.00047066,120]
[408650295,1774047671453,500.0,0.00047066,120]
[408650296,1774047672042,500.0,0.00047066,120]
[408650297,1774047673164,500.0,0.00047066,120]
[408650300,1774047697273,-500.0,0.00029697,120]
[408650301,1774047697298,-553.23,0.00029697,120]
[408650302,1774047697323,-516.35814066,0.00029697,120]
[408650303,1774047697348,-500.0,0.00029697,120]
[408650304,1774047697373,-528.46,0.00029697,120]
[408650305,1774047697398,-400.0,0.00030136,60]
[408650306,1774047697422,-500.0,0.00030136,120]
[408650307,1774047697446,-500.0,0.0003041,120]
[408650308,1774047697475,-500.0,0.00030684,120]
[408650309,1774047697500,-500.0,0.00030958,120]
[408650310,1774047697524,-500.0,0.00031232,120]
[408650311,1774047697549,-500.0,0.00031506,120]
[408650312,1774047697573,-500.0,0.0003178,120]
[408650313,1774047697597,-500.0,0.00032054,120]
[408650314,1774047697621,-500.0,0.00032328,120]
[408650315,1774047697646,-500.0,0.00032602,120]
[408650316,1774047697670,-500.0,0.00032876,120]
[408650317,1774047697700,-500.0,0.0003313,120]
[408650318,1774047697728,-500.0,0.0003313,120]
[408650319,1774047697753,-500.0,0.0003315,120]
[408650320,1774047697778,-500.0,0.00033424,120]
[408650321,1774047697804,-979.16666667,0.000335,120]
[408650322,1774047697829,-500.0,0.00033698,120]
[408650323,1774047697857,-256.1523345,0.00033972,120]
[408650324,1774047697882,-500.0,0.00036493,120]
[408650325,1774047697907,-500.0,0.00036493,120]
[408650326,1774047697930,-500.0,0.00036493,30]
[408650327,1774047697955,-170.28,0.000383,30]
[408650328,1774047697980,-866.821,0.00038594,52]
[408650329,1774047698005,-581.91,0.00039899,120]
[408650330,1774047698029,-500.0,0.00039999,120]
[408650331,1774047698053,-500.0,0.00039999,120]
[408650332,1774047698079,-173118.0,0.0004095,60]
[408650333,1774047698107,-154.10725797,0.00041126,120]
[408650334,1774047698132,-1713.0,0.000418,120]
[408650335,1774047698156,-500.0,0.00041933,120]
[408650336,1774047698181,-531.58377014,0.00041933,120]
[408650337,1774047698206,-500.0,0.00041933,30]
[408650338,1774047698230,-468.9,0.00042,30]
[408650339,1774047698256,-1878.63,0.00042,30]
[408650340,1774047698280,-5242.59,0.00042,30]
[408650341,1774047698305,-173118.0,0.000423,60]
[408650342,1774047698334,-3391.0,0.00042646,120]
[408650343,1774047698359,-170.28,0.000427,30]
[408650344,1774047698384,-500.0,0.00042896,120]
[408650345,1774047698409,-500.0,0.00042896,120]
[408650346,1774047698435,-173118.0,0.0004365,60]
[408650347,1774047698460,-468.9,0.0004368,30]
[408650348,1774047698485,-1878.63,0.0004368,30]
[408650349,1774047698511,-5242.59,0.0004368,30]
[408650350,1774047698541,-500.0,0.00043816,120]
[408650351,1774047698566,-500.0,0.00043816,30]
[408650352,1774047698592,-150.0,0.00044,57]
[408650353,1774047698617,-979.16666667,0.00044,30]
[408650354,1774047698643,-300.0,0.00044603,120]
[408650355,1774047698670,-500.0,0.0004477,120]
[408650356,1774047698695,-500.0,0.0004477,120]
[408650357,1774047698721,-500.0,0.0004478,120]
[408650358,1774047698751,-500.0,0.0004478,30]
[408650359,1774047698778,-500.0,0.00044799,120]
[408650360,1774047698804,-500.0,0.00044799,120]
[408650361,1774047698829,-500.0,0.00044799,120]
[408650362,1774047698854,-500.0,0.00044799,120]
[408650363,1774047698880,-500.0,0.00044799,120]
[408650364,1774047698905,-500.0,0.00044799,120]
[408650365,1774047698932,-500.0,0.00044799,120]
[408650366,1774047698957,-500.0,0.00044799,120]
[408650367,1774047698986,-500.0,0.00044799,120]
[408650368,1774047699011,-500.0,0.00044799,120]
[408650369,1774047699035,-500.0,0.00044799,30]
[408650370,1774047699060,-500.0,0.00044799,30]
[408650371,1774047699084,-500.0,0.00044799,30]
[408650372,1774047699109,-500.0,0.00044799,30]
[408650373,1774047699133,-361.03,0.00044806,30]
[408650374,1774047699158,-1150.0,0.00045,30]
[408650375,1774047699185,-173118.0,0.00045,60]
[408650376,1774047699210,-300.47141396,0.00045072,90]
[408650377,1774047699235,-1878.63,0.00045427,30]
[408650378,1774047699260,-468.9,0.00045427,30]
[408650379,1774047699288,-5242.59,0.00045427,30]
[408650380,1774047699313,-600.0,0.00045536,120]
[408650381,1774047699339,-500.0,0.00045536,120]
[408650382,1774047699364,-500.0,0.00045536,120]
[408650383,1774047699390,-1150.0,0.00046,30]
[408650384,1774047699416,-500.0,0.00046059,120]
[408650385,1774047699593,-553.23,0.00046059,120]
[408650386,1774047699619,-500.0,0.00046059,120]
[408650387,1774047699650,-528.46,0.00046059,120]
[408650388,1774047699675,-1049.72333624,0.0004606,50]
[408650389,1774047699700,-1063.50973565,0.0004606,50]
[408650390,1774047699727,-1134.1337156,0.0004606,50]
[408650391,1774047699751,-1030.67164394,0.0004606,50]
[408650392,1774047699775,-1044.95205406,0.0004606,50]
[408650393,1774047699801,-1142.25724093,0.0004606,50]
[408650394,1774047699825,-1039.39113003,0.0004606,50]
[408650395,1774047699848,-1036.12207011,0.0004606,50]
[408650396,1774047699872,-600.0,0.00046084,120]
[408650397,1774047699893,-500.0,0.00046084,120]
[408650398,1774047699917,-170.28,0.000461,30]
[408650399,1774047699940,-150.0,0.00046113,120]
[408650400,1774047699964,-1003.65147566,0.00046114,50]
[408650401,1774047699986,-1063.1253581,0.00046114,50]
[408650402,1774047700010,-1082.87764152,0.00046114,50]
[408650403,1774047700033,-1101.01602226,0.00046114,50]
[408650404,1774047700055,-1068.51362064,0.00046114,50]
[408650405,1774047700076,-1096.19278247,0.00046114,50]
[408650406,1774047700099,-1025.6276909,0.00046114,50]
[408650407,1774047700121,-431.8713349,0.00046163,30]
[408650408,1774047700144,-1137.34878313,0.00046221,50]
[408650409,1774047700168,-1132.68254444,0.00046221,50]
[408650410,1774047700191,-988.60784749,0.00046221,50]
[408650411,1774047700216,-446.0,0.00046301,60]
[408650412,1774047700240,-446.0,0.00046301,60]
[408650413,1774047700264,-446.0,0.00046301,60]
[408650414,1774047700287,-446.0,0.00046301,60]
[408650415,1774047700310,-446.0,0.00046301,60]
[408650416,1774047700332,-446.0,0.00046301,60]
[408650417,1774047700355,-446.0,0.00046301,60]
[408650418,1774047700379,-446.0,0.00046301,60]
[408650419,1774047700402,-446.0,0.00046301,60]
[408650420,1774047700426,-446.0,0.00046301,60]
[408650421,1774047700450,-446.0,0.00046301,60]
[408650422,1774047700473,-446.0,0.00046301,60]
[408650423,1774047700497,-446.0,0.00046301,60]
[408650424,1774047700521,-446.0,0.00046301,60]
[408650425,1774047700546,-446.0,0.00046301,60]
[408650426,1774047700569,-446.0,0.00046301,60]
[408650427,1774047700593,-446.0,0.00046301,60]
[408650428,1774047700618,-446.0,0.00046301,60]
[408650429,1774047700642,-446.0,0.00046301,60]
[408650430,1774047700667,-446.0,0.00046301,60]
[408650431,1774047700692,-446.0,0.00046301,60]
[408650432,1774047700718,-446.0,0.00046301,60]
[408650433,1774047700745,-446.0,0.00046301,60]
[408650434,1774047700769,-452.0,0.00046301,60]
[408650435,1774047700795,-500.0,0.00046301,60]
[408650436,1774047700833,-500.0,0.00046301,60]
[408650437,1774047700859,-500.0,0.00046301,60]
[408650438,1774047700885,-500.0,0.00046301,60]
[408650439,1774047700913,-500.0,0.00046301,60]
[408650440,1774047700939,-500.0,0.00046301,60]
[408650441,1774047700965,-500.0,0.00046301,60]
[408650442,1774047700990,-500.0,0.00046301,60]
[408650443,1774047701017,-500.0,0.00046301,60]
[408650444,1774047701044,-500.0,0.00046301,60]
[408650445,1774047701070,-500.0,0.00046301,60]
[408650446,1774047701096,-500.0,0.00046301,60]
[408650447,1774047701121,-500.0,0.00046301,60]
[408650448,1774047701154,-500.0,0.00046301,60]
[408650449,1774047701178,-500.0,0.00046301,60]
[408650450,1774047701202,-500.0,0.00046301,60]
[408650451,1774047701231,-500.0,0.00046301,60]
[408650452,1774047701255,-218.46188804,0.00046301,60]
[408650453,1774047701280,-500.0,0.00046301,60]
[408650454,1774047701305,-500.0,0.00046301,60]
[408650455,1774047701333,-503.87001268,0.00046301,60]
[408650456,1774047701358,-158.65517582,0.00046301,60]
[408650457,1774047701387,-150.0,0.00046301,60]
[408650458,1774047701412,-150.0,0.00046301,60]
[408650459,1774047701442,-150.0,0.00046301,60]
[408650460,1774047701469,-150.0,0.00046301,60]
[408650461,1774047701495,-150.0,0.00046301,60]
[408650462,1774047701523,-157.95185233,0.00046301,60]
[408650463,1774047701550,-500.0,0.00046301,60]
[408650464,1774047701575,-1543.0,0.00046301,60]
[408650465,1774047701600,-500.0,0.00046301,60]
[408650466,1774047701625,-1543.0,0.00046301,60]
[408650467,1774047701651,-1543.0,0.00046301,60]
[408650468,1774047701677,-500.0,0.00046301,60]
[408650469,1774047701705,-1543.0,0.00046301,60]
[408650470,1774047701734,-500.0,0.00046301,60]
[408650471,1774047701937,-1543.0,0.00046301,60]
[408650472,1774047701962,-500.0,0.00046301,60]
[408650473,1774047701993,-1543.0,0.00046301,60]
[408650474,1774047702018,-500.0,0.00046301,60]
[408650475,1774047702043,-500.0,0.00046301,60]
[408650476,1774047702067,-1543.0,0.00046301,60]
[408650477,1774047702091,-500.0,0.00046301,60]
[408650478,1774047702115,-1543.0,0.00046301,60]
[408650479,1774047702140,-500.0,0.00046301,60]
[408650480,1774047702167,-1543.0,0.00046301,60]
[408650481,1774047702197,-500.0,0.00046301,60]
[408650482,1774047702222,-500.0,0.00046301,60]
[408650483,1774047702247,-1543.0,0.00046301,60]
[408650484,1774047702272,-500.0,0.00046301,60]
[408650485,1774047702298,-257.02458902,0.00046301,60]
[408650486,1774047702323,-1543.0,0.00046301,60]
[408650487,1774047702349,-1543.0,0.00046301,60]
[408650488,1774047702374,-1543.0,0.00046301,60]
[408650489,1774047702399,-1543.0,0.00046301,60]
[408650490,1774047702430,-1543.0,0.00046301,60]
[408650491,1774047702456,-1543.0,0.00046301,60]
[408650492,1774047702484,-1543.0,0.00046301,60]
[408650493,1774047702516,-1543.0,0.00046301,60]
[408650494,1774047702542,-1543.0,0.00046301,60]
[408650495,1774047702568,-1543.0,0.00046301,60]
[408650496,1774047702593,-1543.0,0.00046301,60]
[408650497,1774047702619,-1543.0,0.00046301,60]
[408650498,1774047702644,-1543.0,0.00046301,60]
[408650499,1774047702669,-1557.76094671,0.00046301,60]
[408650500,1774047702694,-150.0,0.00046301,60]
[408650501,1774047702718,-150.0,0.00046301,60]
[408650502,1774047702748,-150.0,0.00046301,60]
[408650503,1774047702775,-257.84668463,0.00046301,60]
[408650504,1774047702801,-195.06546453,0.00046301,60]
[408650505,1774047702828,-150.0,0.00046301,60]
[408650506,1774047702853,-178.6671581,0.00046301,60]
[408650507,1774047702887,-208.87152917,0.00046301,60]
[408650508,1774047702917,-150.0,0.00046301,60]
[408650509,1774047702942,-150.0,0.00046301,60]
[408650510,1774047702967,-150.0,0.00046301,60]
[408650511,1774047702993,-203.42478898,0.00046301,60]
[408650512,1774047703021,-150.0,0.00046301,60]
[408650513,1774047703047,-150.0,0.00046301,60]
[408650514,1774047703073,-215.99597875,0.00046301,60]
[408650515,1774047703101,-173118.0,0.0004635,60]
[408650516,1774047703128,-600.0,0.00046632,120]
[408650517,1774047703154,-500.0,0.00046632,120]
[408650518,1774047703180,-1000.0,0.00046789,30]
[408650519,1774047703206,-618.37056672,0.00047044,120]
[408650520,1774047703231,-4997140.9164554,0.00047045,30]
[408650521,1774047703255,-1510388.1324707,0.00047045,30]
[408650522,1774047703286,-470002.36115978,0.00047045,30]
[408650524,1774047723887,-500.0,0.00030136,30]
[408650525,1774047724086,-500.0,0.0003041,30]
[408650526,1774047724114,-500.0,0.00030684,30]
[408650527,1774047724142,-500.0,0.00030958,30]
[408650528,1774047724168,-500.0,0.00031232,30]
[408650529,1774047724193,-500.0,0.00031506,30]
[408650530,1774047724218,-500.0,0.0003178,30]
[408650531,1774047724243,-500.0,0.00032054,30]
[408650532,1774047724268,-528.71530408,0.00032328,30]
[408650533,1774047724294,-198.44690299,0.000372,120]
[408650534,1774047724319,-198.44690298,0.000372,120]
[408650535,1774047724351,-505.0,0.0004665,31]
[408650536,1774047724376,-198.44690298,0.00046944,120]
[408650537,1774047724400,-456.0,0.00047045,60]
[408650538,1774047724424,-151.0,0.00047052,120]
[408650539,1774047724449,-461.45026892,0.00047054,120]
[408650540,1774047724474,-37588.0,0.00047054,120]
[408650541,1774047724499,-553.23,0.00047054,120]
[408650542,1774047724525,-553.23,0.00047054,120]
[408650543,1774047724550,-553.23,0.00047054,120]
[408650544,1774047724589,-553.23,0.00047054,120]
[408650545,1774047724617,-553.23,0.00047054,120]
[408650546,1774047724644,-553.23,0.00047054,120]
[408650547,1774047724670,-500.0,0.00047054,120]
[408650548,1774047724696,-500.0,0.00047054,120]
[408650549,1774047724721,-500.0,0.00047054,120]
[408650550,1774047724750,-500.0,0.00047054,120]
[408650551,1774047724778,-565.08716826,0.00047054,120]
[408650552,1774047724805,-528.46,0.00047054,120]
[408650553,1774047724830,-528.46,0.00047054,120]
[408650554,1774047724856,-528.46,0.00047054,120]
[408650555,1774047724883,-528.46,0.00047054,120]
[408650556,1774047724909,-528.46,0.00047054,120]
[408650557,1774047724934,-528.46,0.00047054,120]
[408650558,1774047724959,-30000.0,0.00047054,120]
[408650559,1774047724984,-1500.0,0.00047055,30]
[408650560,1774047725010,-1500.0,0.00047055,30]
[408650561,1774047725035,-1506.1747,0.00047055,30]
[408650562,1774047725060,-1200.0,0.00047055,30]
[408650563,1774047725085,-448.0,0.00047055,120]
[408650564,1774047725119,-169.18,0.000471,30]
[408650565,1774047725144,-150.0,0.000471,109]
[408650566,1774047725170,-553.23,0.00047163,120]
[408650567,1774047725196,-528.46,0.00047163,120]
[408650568,1774047725221,-671.32,0.00047163,30]
[408650569,1774047725247,-300.0,0.00047163,30]
[408650570,1774047725272,-188.93,0.00047163,30]
[408650571,1774047725297,-475.02,0.00047163,30]
[408650572,1774047725322,-564.25,0.00047163,30]
[408650573,1774047725348,-390.08,0.00047163,30]
[408650574,1774047725374,-225.44,0.00047163,30]
[408650575,1774047725399,-159.0,0.00047164,120]
[408650576,1774047725424,-151.0,0.00047164,120]
[408650577,1774047725450,-151.0,0.00047164,120]
[408650578,1774047725475,-176.12679832,0.00047164,30]
[408650579,1774047725500,-408.81001,0.00047166,120]
[408650580,1774047725525,-151.0,0.00047167,120]
[408650581,1774047725550,-151.0,0.00047167,120]
[408650582,1774047725575,-151.0,0.00047167,120]
[408650583,1774047725600,-151.0,0.00047167,120]
[408650584,1774047725624,-553.23,0.00047169,120]
[408650585,1774047725650,-553.23,0.00047169,120]
[408650586,1774047725680,-553.23,0.00047169,120]
[408650587,1774047725705,-553.23,0.00047169,120]
[408650588,1774047725734,-553.23,0.00047169,120]
[408650589,1774047725760,-553.23,0.00047169,120]
[408650590,1774047725786,-553.23,0.00047169,120]
[408650591,1774047725812,-553.31645891,0.00047169,120]
[408650592,1774047725836,-528.46,0.00047169,120]
[408650593,1774047725861,-528.46,0.00047169,120]
[408650594,1774047725885,-528.46,0.00047169,120]
[408650595,1774047725910,-528.46,0.00047169,120]
[408650596,1774047725935,-528.46,0.00047169,120]
[408650597,1774047725960,-528.46,0.00047169,120]
[408650598,1774047725985,-528.46,0.00047169,120]
[408650599,1774047726008,-528.53037888,0.00047169,120]
[408650600,1774047726034,-2210.92,0.0004717,120]
[408650601,1774047726060,-151.0,0.0004717,120]
[408650602,1774047726085,-151.0,0.0004717,120]
[408650603,1774047726109,-159.6,0.00047175,120]
[408650604,1774047726135,-8806.98,0.00047175,120]
[408650605,1774047726160,-8806.98,0.00047175,120]
[408650606,1774047726184,-8806.98,0.00047175,120]
[408650607,1774047726209,-8806.98,0.00047175,120]
[408650608,1774047726233,-8806.98,0.00047175,120]
[408650609,1774047726256,-8806.98,0.00047175,120]
[408650610,1774047726280,-1000.28,0.00047175,120]
[408650611,1774047726446,-600.0,0.0004718,120]
[408650612,1774047726472,-1520.0,0.0004718,30]
[408650613,1774047726498,-1520.0,0.0004718,30]
[408650614,1774047726523,-151.0,0.0004718,30]
[408650615,1774047726548,-160.0,0.0004718,30]
[408650616,1774047726573,-1520.0,0.0004718,30]
[408650617,1774047726599,-151.0,0.0004718,30]
[408650618,1774047726624,-160.0,0.0004718,30]
[408650619,1774047726648,-1520.0,0.0004718,30]
[408650620,1774047726674,-151.0,0.0004718,30]
[408650621,1774047726700,-160.0,0.0004718,30]
[408650622,1774047726726,-151.0,0.0004718,30]
[408650623,1774047726755,-1520.0,0.0004718,30]
[408650624,1774047726779,-160.0,0.0004718,30]
[408650625,1774047726805,-151.0,0.0004718,30]
[408650626,1774047726829,-1520.0,0.0004718,30]
[408650627,1774047726854,-151.0,0.0004718,30]
[408650628,1774047726880,-161.08997555,0.0004718,30]
[408650629,1774047726906,-151.0,0.0004718,30]
[408650630,1774047726931,-1520.0,0.0004718,30]
[408650631,1774047726955,-151.0,0.0004718,30]
[408650632,1774047726979,-1520.0,0.0004718,30]
[408650633,1774047727005,-157.07088498,0.0004718,30]
[408650634,1774047727029,-1520.0,0.0004718,30]
[408650635,1774047727052,-1520.0,0.0004718,30]
[408650636,1774047727078,-1520.0,0.0004718,30]
[408650637,1774047727103,-153.0,0.0004718,30]
[408650638,1774047727128,-1520.0,0.0004718,30]
[408650639,1774047727152,-153.0,0.0004718,30]
[408650640,1774047727177,-1520.0,0.0004718,30]
[408650641,1774047727203,-152.12648558,0.0004718,30]
[408650642,1774047727228,-1520.0,0.0004718,30]
[408650643,1774047727252,-1520.0,0.0004718,30]
[408650644,1774047727276,-1520.0,0.0004718,30]
[408650645,1774047727300,-1520.0,0.0004718,30]
[408650646,1774047727324,-1520.0,0.0004718,30]
[408650647,1774047727349,-1520.0,0.0004718,30]
[408650648,1774047727372,-1520.0,0.0004718,30]
[408650649,1774047727396,-1520.0,0.0004718,30]
[408650650,1774047727421,-1520.0,0.0004718,30]
[408650651,1774047727445,-1520.0,0.0004718,30]
[408650652,1774047727469,-1309.54716045,0.0004718,30]
[408650653,1774047727492,-152.77757392,0.0004718,30]
[408650654,1774047727516,-1112.0,0.0004718,30]
[408650655,1774047727540,-500.0,0.0004718,120]
[408650656,1774047727564,-449.201792,0.00047192,120]
[408650657,1774047727588,-1117.07983396,0.000472,45]
[408650658,1774047727611,-459.88,0.000472,120]
[408650659,1774047727634,-478.5791858,0.000472,120]
[408650660,1774047727663,-212.92,0.000472,45]
[408650661,1774047727688,-212.92,0.000472,55]
[408650662,1774047727713,-463.81,0.000472,45]
[408650663,1774047727741,-463.81,0.000472,55]
[408650664,1774047727767,-236.50830178,0.000472,120]
[408650665,1774047727793,-505.65078341,0.000472,120]
[408650666,1774047727819,-25909.25345299,0.0004721,120]
[408650667,1774047727845,-35000.0,0.0004721,30]
[408650668,1774047727871,-202.99,0.0004721,120]
[408650669,1774047727897,-390.08,0.00047224,30]
[408650670,1774047727924,-198.01,0.00047224,30]
[408650671,1774047727950,-402.56,0.00047224,30]
[408650672,1774047727992,-351.69,0.00047224,30]
[408650673,1774047728032,-351.75,0.00047224,30]
[408650674,1774047728070,-1878.63,0.00047244,30]
[408650675,1774047728108,-468.9,0.00047244,30]
[408650676,1774047728152,-5242.59,0.00047244,30]
[408650677,1774047728193,-5000.0,0.0004726,120]
[408650678,1774047728233,-1000.0,0.0004726,120]
[408650679,1774047728273,-3879.68171579,0.00047276,30]
[408650680,1774047728312,-7511.6599552,0.00047277,120]
[408650681,1774047728351,-23181.27166468,0.00047289,30]
[408650682,1774047728389,-574.9573189,0.00047298,30]
[408650683,1774047728432,-171.25305243,0.000473,90]
[408650684,1774047728471,-179.17436104,0.000473,120]
[408650685,1774047728511,-170.28,0.000473,30]
[408650686,1774047728551,-202.99,0.0004731,120]
[408650687,1774047728590,-1000.0,0.00047316,120]
[408650688,1774047728628,-300.0,0.00047397,120]